[Event "*** SCC Grand Prix: Titled Tuesday Blitz"]
[Site "Chess.com"]
[Date "2020.08.25"]
[Round "10"]
[White "Parhamov"]
[Black "Beca95"]
[Result "0-1"]
[WhiteElo "3005"]
[BlackElo "2883"]
[TimeControl "180+1"]
[EndTime "12:01:26 PDT"]
[Termination "Beca95 won by resignation"]

1. e4 {[%clk 0:02:59.6]} 1... c5 {[%clk 0:02:58.4]} 2. Nc3 {[%clk 0:02:59.3]}
2... Nc6 {[%clk 0:02:57.3]} 3. Bb5 {[%clk 0:02:59.5]} 3... Nd4 {[%clk
0:02:57.5]} 4. Nf3 {[%clk 0:02:59.9]} 4... Nxb5 {[%clk 0:02:53]} 5. Nxb5 {[%clk
0:03:00.1]} 5... a6 {[%clk 0:02:53.4]} 6. Nc3 {[%clk 0:02:59.9]} 6... d6 {[%clk
0:02:53.8]} 7. d4 {[%clk 0:02:54.9]} 7... cxd4 {[%clk 0:02:54.7]} 8. Qxd4 {[%clk
0:02:55.6]} 8... Nf6 {[%clk 0:02:52.9]} 9. Bg5 {[%clk 0:02:55.6]} 9... h6 {[%clk
0:02:53.3]} 10. Bh4 {[%clk 0:02:54.5]} 10... g5 {[%clk 0:02:50.8]} 11. Bg3
{[%clk 0:02:54.3]} 11... e5 {[%clk 0:02:51.1]} 12. Qd3 {[%clk 0:02:31.3]} 12...
Be6 {[%clk 0:02:50]} 13. O-O-O {[%clk 0:02:31.3]} 13... Qa5 {[%clk 0:02:47.3]}
14. a3 {[%clk 0:02:13.6]} 14... Rc8 {[%clk 0:02:47]} 15. Rhe1 {[%clk 0:02:12.1]}
15... Be7 {[%clk 0:02:45.9]} 16. Nd2 {[%clk 0:02:03.5]} 16... b5 {[%clk
0:02:45.5]} 17. Kb1 {[%clk 0:02:03.3]} 17... b4 {[%clk 0:02:38.5]} 18. axb4
{[%clk 0:02:00.4]} 18... Qxb4 {[%clk 0:02:38.6]} 19. Nd5 {[%clk 0:01:57.2]}
19... Nxd5 {[%clk 0:02:29.1]} 20. exd5 {[%clk 0:01:58.1]} 20... Bd7 {[%clk
0:02:29.3]} 21. f3 {[%clk 0:01:50.8]} 21... Rb8 {[%clk 0:02:21.5]} 22. b3 {[%clk
0:01:40.1]} 22... O-O {[%clk 0:02:17.2]} 23. Re4 {[%clk 0:01:38.7]} 23... Qb7
{[%clk 0:02:07]} 24. h4 {[%clk 0:01:36.7]} 24... Bf5 {[%clk 0:02:00.3]} 25. hxg5
{[%clk 0:01:36.8]} 25... hxg5 {[%clk 0:02:01.2]} 26. Nc4 {[%clk 0:01:34.5]}
26... Rfc8 {[%clk 0:01:55.3]} 27. Ne3 {[%clk 0:01:33.7]} 27... Bg6 {[%clk
0:01:54.3]} 28. Rh1 {[%clk 0:01:22.8]} 28... a5 {[%clk 0:01:53.6]} 29. Be1
{[%clk 0:01:19.9]} 29... a4 {[%clk 0:01:53.2]} 30. b4 {[%clk 0:01:20.5]} 30...
Kg7 {[%clk 0:01:30.5]} 31. g4 {[%clk 0:01:14.5]} 31... Qd7 {[%clk 0:01:22.4]}
32. Qe2 {[%clk 0:00:59.6]} 32... Rh8 {[%clk 0:01:17.8]} 33. Rxh8 {[%clk
0:00:56.5]} 33... Rxh8 {[%clk 0:01:18.7]} 34. Rc4 {[%clk 0:00:56.7]} 34... Qb5
{[%clk 0:01:16.1]} 35. Kb2 {[%clk 0:00:22.5]} 35... a3+ {[%clk 0:01:15.8]} 36.
Ka2 {[%clk 0:00:22.2]} 36... Rc8 {[%clk 0:01:13.4]} 37. Qf1 {[%clk 0:00:16.6]}
37... Rb8 {[%clk 0:00:56]} 38. Rc6 {[%clk 0:00:16.2]} 38... Qb7 {[%clk
0:00:32.5]} 39. Qc4 {[%clk 0:00:15.9]} 39... Qa7 {[%clk 0:00:31.9]} 40. Bd2
{[%clk 0:00:15.7]} 40... Bf6 {[%clk 0:00:30.6]} 41. Ra6 {[%clk 0:00:13.7]} 41...
Qe7 {[%clk 0:00:21.1]} 42. Qc6 {[%clk 0:00:12.1]} 42... e4 {[%clk 0:00:20]} 43.
Qxd6 {[%clk 0:00:09.5]} 43... Qxd6 {[%clk 0:00:20.1]} 44. Rxd6 {[%clk
0:00:10.4]} 44... exf3 {[%clk 0:00:20.7]} 45. Rc6 {[%clk 0:00:01.6]} 45... f2
{[%clk 0:00:20.5]} 46. d6 {[%clk 0:00:01.6]} 46... Bd4 {[%clk 0:00:19.8]} 47.
Bc3 {[%clk 0:00:01.7]} 47... Bxc3 {[%clk 0:00:19.5]} 48. Rxc3 {[%clk 0:00:02.6]}
48... Rd8 {[%clk 0:00:19.3]} 49. Rc6 {[%clk 0:00:02.1]} 49... Be4 {[%clk
0:00:18.6]} 50. Rc4 {[%clk 0:00:02.6]} 50... Bd5 {[%clk 0:00:17.9]} 51. Nxd5
{[%clk 0:00:02.7]} 51... f1=Q {[%clk 0:00:17.3]} 52. Ne3 {[%clk 0:00:02.3]}
52... Qe2 {[%clk 0:00:16.3]} 53. Nf5+ {[%clk 0:00:03.2]} 53... Kf6 {[%clk
0:00:16.2]} 54. Rc5 {[%clk 0:00:03.9]} 54... Qe6+ {[%clk 0:00:16]} 55. c4 {[%clk
0:00:03.9]} 55... Qe2+ {[%clk 0:00:15.4]} 56. Kxa3 {[%clk 0:00:04.3]} 56... Qxg4
{[%clk 0:00:12.9]} 57. Ra5 {[%clk 0:00:05.2]} 57... Qf3+ {[%clk 0:00:12.6]} 58.
Ka4 {[%clk 0:00:05.2]} 58... Qc6+ {[%clk 0:00:12.5]} 59. Kb3 {[%clk 0:00:05.4]}
59... Re8 {[%clk 0:00:11.2]} 60. Rd5 {[%clk 0:00:05.3]} 60... Qd7 {[%clk
0:00:10.5]} 61. Nd4 {[%clk 0:00:05.3]} 61... Re3+ {[%clk 0:00:10.2]} 62. Kc2
{[%clk 0:00:05.6]} 62... Qh3 {[%clk 0:00:09]} 63. Kd2 {[%clk 0:00:05.7]} 63...
Rd3+ {[%clk 0:00:08.4]} 64. Kc2 {[%clk 0:00:06.3]} 64... Rc3+ {[%clk 0:00:07.7]}
65. Kb2 {[%clk 0:00:06.7]} 65... Qd3 {[%clk 0:00:04.4]} 66. Rf5+ {[%clk
0:00:07]} 66... Kg6 {[%clk 0:00:02.6]} 67. Rf2 {[%clk 0:00:07.5]} 67... Qxd4
{[%clk 0:00:02]} 68. Rf6+ {[%clk 0:00:08.4]} 68... Kxf6 {[%clk 0:00:01.7]} 69.
d7 {[%clk 0:00:09.3]} 69... Rd3+ {[%clk 0:00:02.1]} 70. Kb1 {[%clk 0:00:09.1]}
70... Qxd7 {[%clk 0:00:02.5]} 71. Ka2 {[%clk 0:00:10]} 71... Qd4 {[%clk
0:00:03.3]} 0-1

[Event "*** SCC Grand Prix: Titled Tuesday Blitz"]
[Site "Chess.com"]
[Date "2020.08.25"]
[Round "10"]
[White "davidkalashian"]
[Black "Shuvalov"]
[Result "1-0"]
[WhiteElo "2602"]
[BlackElo "2402"]
[TimeControl "180+1"]
[EndTime "12:01:27 PDT"]
[Termination "davidkalashian won by checkmate"]

1. e4 {[%clk 0:03:00.9]} 1... e6 {[%clk 0:02:56.6]} 2. Qe2 {[%clk 0:03:00.2]}
2... c5 {[%clk 0:02:55.4]} 3. g3 {[%clk 0:02:59.5]} 3... Nc6 {[%clk 0:02:54.3]}
4. Bg2 {[%clk 0:02:58.4]} 4... Be7 {[%clk 0:02:53.5]} 5. f4 {[%clk 0:02:58]}
5... d5 {[%clk 0:02:52.1]} 6. exd5 {[%clk 0:02:54.4]} 6... exd5 {[%clk
0:02:51.6]} 7. Nf3 {[%clk 0:02:55.3]} 7... Nf6 {[%clk 0:02:51.1]} 8. O-O {[%clk
0:02:54.6]} 8... O-O {[%clk 0:02:50.6]} 9. d3 {[%clk 0:02:54.3]} 9... Re8 {[%clk
0:02:48.9]} 10. h3 {[%clk 0:02:49.6]} 10... Bd6 {[%clk 0:02:35.5]} 11. Qf2
{[%clk 0:02:43.2]} 11... Qc7 {[%clk 0:02:30.8]} 12. Nc3 {[%clk 0:02:36.9]} 12...
a6 {[%clk 0:02:27.9]} 13. Kh1 {[%clk 0:02:30.8]} 13... b5 {[%clk 0:02:22.9]} 14.
Bd2 {[%clk 0:02:08.4]} 14... Bb7 {[%clk 0:02:22.5]} 15. a3 {[%clk 0:02:04.1]}
15... Ne7 {[%clk 0:02:12.8]} 16. Rae1 {[%clk 0:01:59.5]} 16... h5 {[%clk
0:01:46.6]} 17. Ng5 {[%clk 0:01:49.1]} 17... Nf5 {[%clk 0:01:38.2]} 18. Qf3
{[%clk 0:01:39.7]} 18... h4 {[%clk 0:01:06]} 19. gxh4 {[%clk 0:01:22.2]} 19...
Nxh4 {[%clk 0:01:06]} 20. Qf2 {[%clk 0:01:21.9]} 20... Nxg2 {[%clk 0:01:05]} 21.
Qxg2 {[%clk 0:01:18.4]} 21... b4 {[%clk 0:00:57.6]} 22. Ne2 {[%clk 0:01:08.5]}
22... bxa3 {[%clk 0:00:52]} 23. bxa3 {[%clk 0:01:07.5]} 23... d4 {[%clk
0:00:50.8]} 24. Nf3 {[%clk 0:01:04.7]} 24... Bf8 {[%clk 0:00:42.7]} 25. Ng3
{[%clk 0:00:56.8]} 25... Nd5 {[%clk 0:00:38.8]} 26. Ne4 {[%clk 0:00:49.5]} 26...
f5 {[%clk 0:00:27.2]} 27. Neg5 {[%clk 0:00:38.1]} 27... Nf6 {[%clk 0:00:21.8]}
28. Kg1 {[%clk 0:00:33.6]} 28... Qd7 {[%clk 0:00:19.2]} 29. Qg3 {[%clk
0:00:30.5]} 29... Rxe1 {[%clk 0:00:18.6]} 30. Rxe1 {[%clk 0:00:28.4]} 30... Re8
{[%clk 0:00:19.5]} 31. Re5 {[%clk 0:00:29]} 31... Bd6 {[%clk 0:00:17.2]} 32. Qh4
{[%clk 0:00:27.1]} 32... Bxf3 {[%clk 0:00:10.9]} 33. Nxf3 {[%clk 0:00:25.3]}
33... Bxe5 {[%clk 0:00:11]} 34. fxe5 {[%clk 0:00:24.1]} 34... Nh7 {[%clk
0:00:11.2]} 35. Kf2 {[%clk 0:00:20.4]} 35... Qd5 {[%clk 0:00:11.2]} 36. Qh5
{[%clk 0:00:18.7]} 36... Rxe5 {[%clk 0:00:10.6]} 37. Nxe5 {[%clk 0:00:16.6]}
37... Qxe5 {[%clk 0:00:11.5]} 38. Qg6 {[%clk 0:00:15.5]} 38... Qh2+ {[%clk
0:00:10.7]} 39. Ke1 {[%clk 0:00:15.9]} 39... Qh1+ {[%clk 0:00:09.5]} 40. Kf2
{[%clk 0:00:15.6]} 40... Qh2+ {[%clk 0:00:08.4]} 41. Qg2 {[%clk 0:00:16.1]}
41... Qxg2+ {[%clk 0:00:08]} 42. Kxg2 {[%clk 0:00:17]} 42... g5 {[%clk
0:00:08.8]} 43. Ba5 {[%clk 0:00:15.8]} 43... Kf7 {[%clk 0:00:09]} 44. Bb6 {[%clk
0:00:15.4]} 44... c4 {[%clk 0:00:09.8]} 45. dxc4 {[%clk 0:00:13]} 45... Ke6
{[%clk 0:00:09.3]} 46. Bxd4 {[%clk 0:00:12.9]} 46... Nf8 {[%clk 0:00:10]} 47.
Be3 {[%clk 0:00:12.3]} 47... f4 {[%clk 0:00:09.6]} 48. Bf2 {[%clk 0:00:12.2]}
48... Ng6 {[%clk 0:00:09.8]} 49. c5 {[%clk 0:00:11]} 49... Kd5 {[%clk
0:00:09.7]} 50. Kf3 {[%clk 0:00:11]} 50... Ne5+ {[%clk 0:00:09.8]} 51. Ke2
{[%clk 0:00:11.3]} 51... Ke4 {[%clk 0:00:08.8]} 52. Be1 {[%clk 0:00:09.4]} 52...
Nc6 {[%clk 0:00:08.8]} 53. Bc3 {[%clk 0:00:09]} 53... Ne7 {[%clk 0:00:06.7]} 54.
Bf6 {[%clk 0:00:08.5]} 54... Nd5 {[%clk 0:00:06.7]} 55. Bxg5 {[%clk 0:00:08.8]}
55... f3+ {[%clk 0:00:05.5]} 56. Kf2 {[%clk 0:00:09.1]} 56... a5 {[%clk
0:00:04.2]} 57. c6 {[%clk 0:00:08.4]} 57... a4 {[%clk 0:00:04.7]} 58. Bd8 {[%clk
0:00:07.9]} 58... Kf4 {[%clk 0:00:01.7]} 59. h4 {[%clk 0:00:06.6]} 59... Kg4
{[%clk 0:00:01.7]} 60. c4 {[%clk 0:00:06.2]} 60... Nf4 {[%clk 0:00:01.4]} 61. c7
{[%clk 0:00:06.3]} 61... Nd3+ {[%clk 0:00:01.5]} 62. Kf1 {[%clk 0:00:05.7]}
62... Ne5 {[%clk 0:00:01.6]} 63. c8=Q+ {[%clk 0:00:05.1]} 63... Kf4 {[%clk
0:00:02.5]} 64. Qc7 {[%clk 0:00:05.3]} 64... Ke4 {[%clk 0:00:02.4]} 65. Qxe5+
{[%clk 0:00:06.2]} 65... Kxe5 {[%clk 0:00:03.3]} 66. h5 {[%clk 0:00:06.8]} 66...
Kd4 {[%clk 0:00:03.8]} 67. h6 {[%clk 0:00:07.7]} 67... Kxc4 {[%clk 0:00:04.7]}
68. h7 {[%clk 0:00:08.6]} 68... Kb3 {[%clk 0:00:05.6]} 69. h8=Q {[%clk 0:00:09]}
69... Kxa3 {[%clk 0:00:06.5]} 70. Qc3+ {[%clk 0:00:08.8]} 70... Ka2 {[%clk
0:00:06.7]} 71. Bf6 {[%clk 0:00:09.7]} 71... a3 {[%clk 0:00:07]} 72. Kf2 {[%clk
0:00:08.9]} 72... Kb1 {[%clk 0:00:06.4]} 73. Kxf3 {[%clk 0:00:08.5]} 73... Ka2
{[%clk 0:00:06.6]} 74. Qc2# {[%clk 0:00:08.5]} 1-0

[Event "*** SCC Grand Prix: Titled Tuesday Blitz"]
[Site "Chess.com"]
[Date "2020.08.25"]
[Round "10"]
[White "The_Machine04"]
[Black "ditkin25"]
[Result "0-1"]
[WhiteElo "2280"]
[BlackElo "2420"]
[TimeControl "180+1"]
[EndTime "12:01:28 PDT"]
[Termination "ditkin25 won by checkmate"]

1. d4 {[%clk 0:03:00.9]} 1... Nf6 {[%clk 0:02:58.9]} 2. Bg5 {[%clk 0:03:00.4]}
2... d5 {[%clk 0:02:57.1]} 3. e3 {[%clk 0:02:59]} 3... Nbd7 {[%clk 0:02:56]} 4.
Nf3 {[%clk 0:02:58.1]} 4... e6 {[%clk 0:02:55.8]} 5. Ne5 {[%clk 0:02:57.8]} 5...
Be7 {[%clk 0:02:52]} 6. f4 {[%clk 0:02:54.6]} 6... Nxe5 {[%clk 0:02:40.1]} 7.
fxe5 {[%clk 0:02:55.5]} 7... Ne4 {[%clk 0:02:39.7]} 8. Bf4 {[%clk 0:02:47.6]}
8... c5 {[%clk 0:02:24.2]} 9. c3 {[%clk 0:02:41.8]} 9... h5 {[%clk 0:02:05.3]}
10. Bd3 {[%clk 0:02:37.4]} 10... g5 {[%clk 0:01:59.3]} 11. Bg3 {[%clk
0:02:35.3]} 11... h4 {[%clk 0:01:57.1]} 12. Bf2 {[%clk 0:02:31.6]} 12... Nxf2
{[%clk 0:01:53.8]} 13. Kxf2 {[%clk 0:02:32.5]} 13... Bd7 {[%clk 0:01:18.3]} 14.
Nd2 {[%clk 0:02:26.7]} 14... Bc6 {[%clk 0:01:15.5]} 15. Rf1 {[%clk 0:02:22.1]}
15... Qb6 {[%clk 0:01:03.9]} 16. Rb1 {[%clk 0:02:15.3]} 16... O-O-O {[%clk
0:01:01.2]} 17. Kg1 {[%clk 0:02:12.7]} 17... Rdf8 {[%clk 0:00:56.5]} 18. Qg4
{[%clk 0:02:11.5]} 18... Bd7 {[%clk 0:00:43.9]} 19. Nf3 {[%clk 0:02:01.7]} 19...
f5 {[%clk 0:00:34.8]} 20. exf6 {[%clk 0:02:01.3]} 20... Bxf6 {[%clk 0:00:27.7]}
21. Ne5 {[%clk 0:01:55]} 21... Bxe5 {[%clk 0:00:26.5]} 22. dxe5 {[%clk
0:01:55.9]} 22... c4 {[%clk 0:00:26.8]} 23. Bc2 {[%clk 0:01:30.2]} 23... Qxe3+
{[%clk 0:00:26.8]} 24. Kh1 {[%clk 0:01:30.4]} 24... Qxe5 {[%clk 0:00:27]} 25.
Rbe1 {[%clk 0:01:27.7]} 25... Rf4 {[%clk 0:00:19]} 26. Qd1 {[%clk 0:01:11.8]}
26... Rhf8 {[%clk 0:00:18.8]} 27. Rg1 {[%clk 0:01:06.7]} 27... Qf6 {[%clk
0:00:18.3]} 28. b3 {[%clk 0:01:01.5]} 28... Rf2 {[%clk 0:00:16.7]} 29. bxc4
{[%clk 0:00:59.1]} 29... dxc4 {[%clk 0:00:17.6]} 30. Be4 {[%clk 0:00:58.4]}
30... h3 {[%clk 0:00:13.8]} 31. Qd6 {[%clk 0:00:47.7]} 31... hxg2+ {[%clk
0:00:12.7]} 32. Rxg2 {[%clk 0:00:41.4]} 32... Qf4 {[%clk 0:00:05.6]} 33. Qc5+
{[%clk 0:00:32.4]} 33... Qc7 {[%clk 0:00:05.1]} 34. Qxf2 {[%clk 0:00:27.8]}
34... Rxf2 {[%clk 0:00:05.2]} 35. Rxf2 {[%clk 0:00:28.7]} 35... Bc6 {[%clk
0:00:06]} 36. Rf8+ {[%clk 0:00:27.2]} 36... Be8 {[%clk 0:00:05.1]} 37. Rxe8+
{[%clk 0:00:26.2]} 37... Kd7 {[%clk 0:00:05.5]} 38. Rf8 {[%clk 0:00:21.7]} 38...
Qe5 {[%clk 0:00:06]} 39. Rf3 {[%clk 0:00:18.4]} 39... Qa5 {[%clk 0:00:04.7]} 40.
Re2 {[%clk 0:00:17.2]} 40... b6 {[%clk 0:00:03.9]} 41. Rfe3 {[%clk 0:00:16.7]}
41... Qa3 {[%clk 0:00:03.6]} 42. Bf3 {[%clk 0:00:15.9]} 42... Qc1+ {[%clk
0:00:03.9]} 43. Kg2 {[%clk 0:00:15.9]} 43... e5 {[%clk 0:00:02.4]} 44. Bd5
{[%clk 0:00:12.6]} 44... Kd6 {[%clk 0:00:01.4]} 45. Bxc4 {[%clk 0:00:11.7]}
45... Qb1 {[%clk 0:00:01.7]} 46. Rd2+ {[%clk 0:00:10.6]} 46... Kc5 {[%clk
0:00:01.2]} 47. Bd3 {[%clk 0:00:07.2]} 47... Qc1 {[%clk 0:00:01.8]} 48. Rc2
{[%clk 0:00:06.3]} 48... Qxe3 {[%clk 0:00:01.5]} 49. Bf1 {[%clk 0:00:05.2]}
49... Qe4+ {[%clk 0:00:01.9]} 50. Kg1 {[%clk 0:00:04.3]} 50... Qxc2 {[%clk
0:00:02.8]} 51. h3 {[%clk 0:00:05.1]} 51... Qxc3 {[%clk 0:00:03.4]} 52. Bg2
{[%clk 0:00:05.5]} 52... Qd4+ {[%clk 0:00:04]} 53. Kh2 {[%clk 0:00:06.4]} 53...
Qd2 {[%clk 0:00:04.4]} 54. Kg3 {[%clk 0:00:07.2]} 54... Qxa2 {[%clk 0:00:05]}
55. Kg4 {[%clk 0:00:08.1]} 55... Qc4+ {[%clk 0:00:05.3]} 56. Kxg5 {[%clk
0:00:09]} 56... Qf4+ {[%clk 0:00:05.8]} 57. Kh5 {[%clk 0:00:09.2]} 57... e4
{[%clk 0:00:06.7]} 58. h4 {[%clk 0:00:09.4]} 58... e3 {[%clk 0:00:06.8]} 59. Bh3
{[%clk 0:00:10]} 59... Qf3+ {[%clk 0:00:07.1]} 60. Bg4 {[%clk 0:00:10.9]} 60...
Qd5+ {[%clk 0:00:07.6]} 61. Kg6 {[%clk 0:00:06.4]} 61... Qe4+ {[%clk 0:00:06.5]}
62. Bf5 {[%clk 0:00:06.3]} 62... Qg2+ {[%clk 0:00:06.9]} 63. Kh6 {[%clk
0:00:05.4]} 63... e2 {[%clk 0:00:07.8]} 64. h5 {[%clk 0:00:04.8]} 64... e1=Q
{[%clk 0:00:08.1]} 65. Bg6 {[%clk 0:00:05.6]} 65... Qe7 {[%clk 0:00:07.5]} 66.
Bf7 {[%clk 0:00:04.5]} 66... Qgg5+ {[%clk 0:00:08.1]} 67. Kh7 {[%clk 0:00:03.8]}
67... Qxf7+ {[%clk 0:00:07.2]} 68. Kh8 {[%clk 0:00:04.1]} 68... Qfg7# {[%clk
0:00:07.4]} 0-1

[Event "*** SCC Grand Prix: Titled Tuesday Blitz"]
[Site "Chess.com"]
[Date "2020.08.25"]
[Round "10"]
[White "Margarita2907"]
[Black "gagtemp"]
[Result "1/2-1/2"]
[WhiteElo "2087"]
[BlackElo "1957"]
[TimeControl "180+1"]
[EndTime "12:01:33 PDT"]
[Termination "Game drawn - insufficient material"]

1. e4 {[%clk 0:03:00.9]} 1... d5 {[%clk 0:02:55.8]} 2. exd5 {[%clk 0:03:00]}
2... Qxd5 {[%clk 0:02:56.7]} 3. Nc3 {[%clk 0:02:59.2]} 3... Qd6 {[%clk
0:02:56.6]} 4. d4 {[%clk 0:02:57.6]} 4... Nf6 {[%clk 0:02:56.3]} 5. Nf3 {[%clk
0:02:57.4]} 5... a6 {[%clk 0:02:52.3]} 6. Be2 {[%clk 0:02:55.7]} 6... e6 {[%clk
0:02:49.5]} 7. Be3 {[%clk 0:02:54.8]} 7... Be7 {[%clk 0:02:49]} 8. h3 {[%clk
0:02:54.8]} 8... O-O {[%clk 0:02:48.6]} 9. Qd2 {[%clk 0:02:52.5]} 9... b5 {[%clk
0:02:47.5]} 10. O-O {[%clk 0:02:48.4]} 10... Bb7 {[%clk 0:02:46.7]} 11. Bf4
{[%clk 0:02:43.5]} 11... Qb6 {[%clk 0:02:45.7]} 12. a3 {[%clk 0:02:34.3]} 12...
Nbd7 {[%clk 0:02:43]} 13. Ne5 {[%clk 0:02:33.2]} 13... Rad8 {[%clk 0:02:24.2]}
14. Nxd7 {[%clk 0:02:24.6]} 14... Rxd7 {[%clk 0:02:20.3]} 15. Be5 {[%clk
0:02:23.2]} 15... c5 {[%clk 0:02:15.5]} 16. Rad1 {[%clk 0:02:06.7]} 16... cxd4
{[%clk 0:02:11.3]} 17. Bxd4 {[%clk 0:02:04.2]} 17... Qc7 {[%clk 0:01:58.5]} 18.
Qe3 {[%clk 0:02:00.5]} 18... g6 {[%clk 0:01:33]} 19. Bf3 {[%clk 0:01:53.1]}
19... Bxf3 {[%clk 0:01:28.8]} 20. Qxf3 {[%clk 0:01:54]} 20... Nd5 {[%clk
0:01:22.7]} 21. Nxd5 {[%clk 0:01:48.2]} 21... Rxd5 {[%clk 0:01:21.4]} 22. Bc3
{[%clk 0:01:40.5]} 22... Rf5 {[%clk 0:01:12.9]} 23. Qe2 {[%clk 0:01:33.8]} 23...
Bxa3 {[%clk 0:01:08.5]} 24. Rd3 {[%clk 0:01:00.4]} 24... Be7 {[%clk 0:01:05.1]}
25. Rfd1 {[%clk 0:00:59.9]} 25... Rd8 {[%clk 0:01:02.1]} 26. Rxd8+ {[%clk
0:00:58.4]} 26... Bxd8 {[%clk 0:01:00.9]} 27. Qd3 {[%clk 0:00:57.4]} 27... Bf6
{[%clk 0:00:52.9]} 28. Bxf6 {[%clk 0:00:52.2]} 28... Rxf6 {[%clk 0:00:51.2]} 29.
Qe4 {[%clk 0:00:47]} 29... Qb6 {[%clk 0:00:40.5]} 30. Rd2 {[%clk 0:00:36.2]}
30... Qc7 {[%clk 0:00:32.6]} 31. Qa8+ {[%clk 0:00:34.2]} 31... Kg7 {[%clk
0:00:31.7]} 32. Qxa6 {[%clk 0:00:33.9]} 32... Rf5 {[%clk 0:00:26.6]} 33. Qa8
{[%clk 0:00:25.9]} 33... Rc5 {[%clk 0:00:23]} 34. c3 {[%clk 0:00:23.8]} 34... b4
{[%clk 0:00:20.2]} 35. Qe4 {[%clk 0:00:10]} 35... bxc3 {[%clk 0:00:18.2]} 36.
bxc3 {[%clk 0:00:10.1]} 36... Re5 {[%clk 0:00:14.4]} 37. Qd4 {[%clk 0:00:08.1]}
37... f6 {[%clk 0:00:09.9]} 38. g3 {[%clk 0:00:08.2]} 38... Rd5 {[%clk
0:00:09.5]} 39. Qe3 {[%clk 0:00:07.2]} 39... Re5 {[%clk 0:00:08.8]} 40. Qd3
{[%clk 0:00:06.2]} 40... Rd5 {[%clk 0:00:08.9]} 41. Qc2 {[%clk 0:00:06]} 41...
Re5 {[%clk 0:00:08.8]} 42. Qd1 {[%clk 0:00:04.8]} 42... Qc6 {[%clk 0:00:08.5]}
43. Rd7+ {[%clk 0:00:04.8]} 43... Kh6 {[%clk 0:00:07.6]} 44. Qd2+ {[%clk
0:00:04.6]} 44... g5 {[%clk 0:00:07.1]} 45. Rd3 {[%clk 0:00:04.2]} 45... Kg6
{[%clk 0:00:07.1]} 46. Re3 {[%clk 0:00:04]} 46... Rf5 {[%clk 0:00:06.7]} 47. Qd3
{[%clk 0:00:03.4]} 47... Qd5 {[%clk 0:00:05.3]} 48. Qxd5 {[%clk 0:00:02.8]}
48... exd5 {[%clk 0:00:04.4]} 49. Re7 {[%clk 0:00:03]} 49... Re5 {[%clk
0:00:04.2]} 50. Rc7 {[%clk 0:00:03.1]} 50... Re1+ {[%clk 0:00:03.3]} 51. Kg2
{[%clk 0:00:03.1]} 51... Rc1 {[%clk 0:00:03.4]} 52. Kf3 {[%clk 0:00:03.5]} 52...
d4 {[%clk 0:00:03.6]} 53. Ke2 {[%clk 0:00:03]} 53... Rxc3 {[%clk 0:00:03.3]} 54.
Rd7 {[%clk 0:00:02.3]} 54... Rc4 {[%clk 0:00:03.3]} 55. Kd3 {[%clk 0:00:02.4]}
55... Ra4 {[%clk 0:00:03.4]} 56. Rxd4 {[%clk 0:00:02.3]} 56... Rxd4+ {[%clk
0:00:03.4]} 57. Kxd4 {[%clk 0:00:03.2]} 57... h5 {[%clk 0:00:03.7]} 58. Ke4
{[%clk 0:00:03.8]} 58... h4 {[%clk 0:00:01.7]} 59. g4 {[%clk 0:00:03.5]} 59...
Kf7 {[%clk 0:00:01.6]} 60. f4 {[%clk 0:00:03.5]} 60... gxf4 {[%clk 0:00:01.3]}
61. Kxf4 {[%clk 0:00:04.4]} 61... Kg6 {[%clk 0:00:01.7]} 62. Ke4 {[%clk
0:00:04.4]} 62... Kg5 {[%clk 0:00:02]} 63. Kf3 {[%clk 0:00:04.6]} 63... f5
{[%clk 0:00:02.4]} 64. gxf5 {[%clk 0:00:04.8]} 64... Kxf5 {[%clk 0:00:03.3]} 65.
Ke3 {[%clk 0:00:05.3]} 65... Kg5 {[%clk 0:00:03.9]} 66. Kf3 {[%clk 0:00:05.7]}
66... Kh5 {[%clk 0:00:04.8]} 67. Kf4 {[%clk 0:00:05.8]} 67... Kh6 {[%clk
0:00:04.7]} 68. Kg4 {[%clk 0:00:06.5]} 68... Kh7 {[%clk 0:00:04.8]} 69. Kxh4
{[%clk 0:00:07.4]} 69... Kh6 {[%clk 0:00:05.1]} 70. Kg4 {[%clk 0:00:07.3]} 70...
Kh7 {[%clk 0:00:05.3]} 71. h4 {[%clk 0:00:07.9]} 71... Kh6 {[%clk 0:00:05.6]}
72. Kf5 {[%clk 0:00:07.8]} 72... Kh5 {[%clk 0:00:05.8]} 73. Kf4 {[%clk 0:00:08]}
73... Kxh4 {[%clk 0:00:06.1]} 1/2-1/2